[Event "Gibraltar Junior Intl U16 2019"]
[Site "Caleta"]
[Date "2019.08.19"]
[Round "6.12"]
[White "Patel, Devan"]
[Black "Akeya-Price, Robert"]
[Result "1-0"]
[ECO "D38"]
[WhiteElo "1659"]
[BlackElo "1988"]
[Annotator "NA"]
[PlyCount "97"]
[EventDate "2019.08.16"]
[EventType "swiss"]
[EventCountry "GGB"]
[SourceTitle "playchess.com"]
[Source "ChessBase"]
[SourceQuality "1"]
[TimeControl "6600+10"]

1. d4 {[%emt 0:00:00]} Nf6 {[%emt 0:00:00]} 2. Nf3 {[%emt 0:00:00]} d5 {[%emt 0:00:04]} 3. c4 {[%emt 0:00:03]} e6 {[%emt 0:00:25]} 4. Nc3 {[%emt 0:00:06]} Bb4 {[%emt 0:00:34]} 5. Bg5 {[%emt 0:00:17]} c6 {[%emt 0:00:52]} 6. Rc1 {[%emt 0:00:11]} Nbd7 {[%emt 0:00:34]} 7. cxd5 {[%emt 0:00:15]} exd5 {[%emt 0:00:14]} 8. e3 {[%emt 0:00:14]} O-O {[%emt 0:02:50] D38: Queen's Gambit Declined: Ragozin Defence (4 Nf3 Bb4)} (8... Qa5 9. Bd3 Ne4 10. O-O Nxg5 11. Nxg5 Nf6 12. Qc2 h6 13. Nf3 Bd6 14. Ne5 Ng4 15. Nf3 Nf6 16. h3 {0-1 (43) Vachier Lagrave,M (2754)-Caruana,F (2803) Khanty-Mansiysk 2015}) 9. Bd3 {[%emt 0:00:09]} a5 {[%emt 0:03:43]} 10. O-O {[%emt 0:00:22]} Re8 {[%emt 0:01:17]} 11. a3 $146 {[%emt 0:00:15]} ({Predecessor:} 11. h3 h6 12. Bh4 Qb6 13. Bb1 Ne4 14. Nxe4 dxe4 15. Nd2 Be7 16. Bxe7 Rxe7 17. Nxe4 Qxb2 {½-½ (52) Kuseyri,M (2046)-Elmas,O (1819) Istanbul 2013}) 11... Be7 {[%emt 0:02:36]} 12. Qc2 {[%emt 0:01:40]} h6 {[%emt 0:01:18]} 13. Bf4 {[%emt 0:00:46]} Nh5 {[%emt 0:04:47]} ({Black should play} 13... Bf8 $14) 14. Be5 {[%emt 0:02:21]} (14. Nxd5 $16 Nxf4 15. Nxe7+ (15. Nxf4 Bd6 $16) 15... Rxe7 16. exf4) 14... Nxe5 {[%emt 0:01:07]} 15. Bh7+ {[%emt 0:02:35]} Kf8 {[%emt 0:04:18]} 16. Nxe5 {[%emt 0:00:17]} ({Only move:} 16. dxe5 $16 g6 17. Bxg6 fxg6 18. Qxg6 {[%mdl 64] Double Attack}) 16... Nf6 {[%emt 0:02:36]} 17. Na4 {[%emt 0:15:40]} Bd6 {[%emt 0:06:36]} 18. f4 {[%emt 0:02:29]} Nxh7 {[%emt 0:23:11]} 19. Qxh7 {[%emt 0:00:53]} Qf6 {[%emt 0:01:53]} 20. Nb6 {[%emt 0:03:07]} Ke7 $2 {[%emt 0:00:20]} (20... Bf5 $16 {is tougher.} 21. Ned7+ {[%mdl 64] Double Attack} (21. Nxa8 $2 Ke7 $19) 21... Ke7 22. Nxf6 Bxh7) 21. Rxc6 {[%emt 0:15:21]} (21. Nxa8 $2 {loses.}) 21... Bf5 {[%emt 0:14:41]} 22. Nxd5+ {[%emt 0:00:32] Double Attack} Ke6 {[%emt 0:00:42]} 23. Nxf6 {[%emt 0:07:07]} Bxh7 {[%emt 0:00:16]} 24. Nxe8 {[%emt 0:05:22]} bxc6 {[%emt 0:01:40]} 25. Nxd6 {[%emt 0:00:13]} Kxd6 {[%emt 0:00:32]} 26. Nxf7+ {[%emt 0:00:13]} Ke6 {[%emt 0:01:41]} 27. Ne5 {[%emt 0:00:12]} Be4 {[%emt 0:00:15]} 28. Rf2 {[%emt 0:01:26]} Rb8 {[%emt 0:02:20]} 29. Rd2 {[%emt 0:01:21]} Rb3 {[%emt 0:00:45]} 30. Kf2 {[%emt 0:00:20]} g6 {[%emt 0:01:34]} 31. g4 {[%emt 0:02:04]} a4 {[%emt 0:01:50]} 32. Re2 {[%emt 0:02:26]} Ke7 {[%emt 0:01:37]} 33. Nf3 {[%emt 0:01:28]} Bd3 {[%emt 0:00:38]} 34. Rd2 {[%emt 0:00:32]} Be4 {[%emt 0:00:07]} 35. Nh4 {[%emt 0:00:37]} Kf6 {[%emt 0:04:27]} 36. Nf3 $2 {[%emt 0:02:52]} (36. h3 $18) 36... Ke7 $1 {[%emt 0:00:29]} 37. Ng1 {[%emt 0:00:06]} Bd5 {[%emt 0:02:44]} 38. Ne2 {[%emt 0:00:21]} Rb8 {[%emt 0:00:23]} 39. Nc3 {[%emt 0:00:18]} Bb3 {[%emt 0:00:36]} 40. Ne4 {[%emt 0:00:18]} Bc4 {[%emt 0:02:51]} 41. Nc5 {[%emt 0:00:12]} Bb5 {[%emt 0:00:08]} 42. e4 {[%emt 0:01:24]} Rf8 $18 {[%emt 0:00:38]} 43. Ke3 {[%emt 0:00:14]} Kd6 {[%emt 0:00:22]} 44. Rg2 {[%emt 0:00:31]} g5 {[%emt 0:01:05]} 45. f5 {[%emt 0:00:16]} Rf7 {[%emt 0:00:25]} 46. Rf2 {[%emt 0:00:08]} Rf8 {[%emt 0:00:21]} 47. e5+ {[%emt 0:00:14]} Kd5 {[%emt 0:00:26]} 48. Nd7 {[%emt 0:00:19]} Rf7 {[%emt 0:00:19]} 49. Nb6# {[%emt 0:00:06]} 1-0

[Event "Gibraltar Junior Intl U16 2019"]
[Site "Caleta"]
[Date "2019.08.19"]
[Round "6.13"]
[White "Hussain, Adam"]
[Black "Krivenko, Dion"]
[Result "0-1"]
[ECO "D02"]
[WhiteElo "1515"]
[BlackElo "1810"]
[Annotator "NA RC"]
[PlyCount "52"]
[EventDate "2019.08.16"]
[EventType "swiss"]
[EventCountry "GGB"]
[SourceTitle "playchess.com"]
[Source "ChessBase"]
[SourceQuality "1"]
[TimeControl "6600+10"]

{[%evp 12,50,10,32767,32767,-28,32767,-28,-12,-43,-39,32767,32767,-57,-55,-50,-59,-58,-58,-53,-51,-52,32767,-95,-44,32767,-47,-59,-53,-46,-35,32767,-70,-74,-85,-81,-55,-64,32767,-14,0]} 1. d4 {[%emt 0:00:00]} d5 {[%emt 0:00:00]} 2. Nc3 {[%emt 0:00:00]} c5 {[%emt 0:00:19]} 3. Bf4 {[%emt 0:01:41]} Nf6 {[%emt 0:04:12]} 4. Nf3 {[%emt 0:03:15]} Nc6 {[%emt 0:02:49]} 5. e3 {[%emt 0:00:57]} a6 {[%emt 0:04:45]} 6. Ne5 {[%emt 0:02:18] D02: 1 d4 d5 2 Nf3 sidelines, including 2...Nf6 3 g3 and 2...Nf6 3 Bf4} (6. dxc5 e6 7. Na4 Bxc5 8. Nxc5 Qa5+ 9. c3 Qxc5 10. Bd3 Qe7 11. Ne5 Nd7 12. Nxc6 bxc6 13. e4 {1-0 (73) Vachier Lagrave,M (2779)-Nakamura,H (2777) chess.com INT 2018}) 6... e6 {[%emt 0:03:23]} 7. g4 $146 {[%emt 0:01:40]} ({Predecessor:} 7. Be2 Be7 8. O-O O-O 9. Nxc6 bxc6 10. Na4 cxd4 11. exd4 a5 12. Re1 Nd7 13. Bd3 {½-½ (63) Predke,A (2543)-Sjugirov,S (2662) Kaliningrad 2015}) 7... cxd4 {[%emt 0:03:46]} 8. exd4 {[%emt 0:00:19]} Bb4 {[%emt 0:05:05]} 9. Bg2 {[%emt 0:00:28]} Qb6 {[%emt 0:05:38]} 10. Nxc6 {[%emt 0:06:07]} Qxc6 {[%emt 0:07:14]} 11. g5 {[%emt 0:01:21]} Ne4 {[%emt 0:02:15]} 12. Bxe4 {[%emt 0:01:30]} dxe4 {[%emt 0:00:01]} 13. O-O {[%emt 0:00:12]} Bxc3 {[%emt 0:12:13]} 14. bxc3 {[%emt 0:00:36]} O-O {[%emt 0:04:22]} 15. Re1 {[%emt 0:06:19]} Bd7 {[%emt 0:06:03]} 16. Re3 {[%emt 0:04:30]} Qd5 {[%emt 0:03:04] [#]} 17. h4 $2 {[%emt 0:03:42]} (17. Be5 $1 $16) 17... Qf5 {[%emt 0:02:41]} 18. Bg3 {[%emt 0:01:48]} Bc6 {[%emt 0:01:50]} 19. c4 {[%emt 0:02:11]} Rad8 {[%emt 0:02:15]} 20. c3 {[%emt 0:01:08]} Rd7 {[%emt 0:01:23]} 21. Qe2 {[%emt 0:01:59]} f6 {[%emt 0:03:27]} 22. gxf6 {[%emt 0:05:54]} gxf6 {[%emt 0:01:23]} 23. Kh2 {[%emt 0:01:08]} Rg7 {[%emt 0:03:55]} 24. Rg1 {[%emt 0:01:39]} Qg6 {[%emt 0:01:59]} 25. Qd1 {[%emt 0:00:51]} Qf5 $11 {[%emt 0:04:06]} 26. Bd6 {[%emt 0:05:11]} Qxf2+ {[%emt 0:00:47] Bg3 Qf5} 0-1

[Event "Gibraltar Junior Intl U16 2019"]
[Site "Caleta"]
[Date "2019.08.19"]
[Round "6.14"]
[White "Gutierrez Lupion, Nuria"]
[Black "Shepherd, Tom"]
[Result "1-0"]
[ECO "B90"]
[WhiteElo "1712"]
[BlackElo "1659"]
[Annotator "NA RC"]
[PlyCount "47"]
[EventDate "2019.08.16"]
[EventType "swiss"]
[EventCountry "GGB"]
[SourceTitle "playchess.com"]
[Source "ChessBase"]
[SourceQuality "1"]
[TimeControl "6600+10"]

1. e4 {[%emt 0:00:04]} c5 {[%emt 0:00:00]} 2. Nf3 {[%emt 0:00:17]} d6 {[%emt 0:00:00]} 3. d4 {[%emt 0:00:10]} cxd4 {[%emt 0:00:00]} 4. Nxd4 {[%emt 0:00:08]} Nf6 {[%emt 0:00:00]} 5. Nc3 {[%emt 0:00:15]} a6 {[%emt 0:00:04]} 6. h3 {[%emt 0:01:34]} e5 {[%emt 0:00:12]} 7. Nde2 {[%emt 0:01:16]} b5 {[%emt 0:02:36]} 8. a3 {[%emt 0:01:00]} Bb7 {[%emt 0:00:56]} 9. Ng3 {[%emt 0:01:46]} Nbd7 {[%emt 0:03:22]} 10. Bg5 {[%emt 0:02:06]} h6 {[%emt 0:02:54]} 11. Be3 {[%emt 0:01:08]} g6 {[%emt 0:04:47]} 12. Qd2 {[%emt 0:03:12]} h5 {[%emt 0:01:04]} 13. Bd3 {[%emt 0:10:05]} Qc7 {[%emt 0:07:50]} 14. O-O-O {[%emt 0:10:27]} Be7 {[%emt 0:05:50]} 15. Kb1 {[%emt 0:11:20]} O-O {[%emt 0:03:58]} 16. Bh6 {[%emt 0:12:28]} Rfc8 {[%emt 0:02:51]} 17. Nf5 {[%emt 0:14:44]} Nf8 {[%emt 0:17:58]} 18. Ne3 {[%emt 0:18:05]} Ne6 {[%emt 0:06:51]} 19. Ned5 {[%emt 0:01:51]} Nxd5 {[%emt 0:04:37]} 20. exd5 {[%emt 0:00:28]} Nc5 {[%emt 0:01:02]} 21. Qe3 {[%emt 0:04:20]} Nxd3 {[%emt 0:03:09]} 22. Rxd3 {[%emt 0:00:29]} Qc4 {[%emt 0:04:46]} 23. f4 {[%emt 0:01:49]} exf4 {[%emt 0:06:13]} 24. Qxe7 {[%emt 0:01:19]} 1-0

[Event "Gibraltar Junior Intl U16 2019"]
[Site "Caleta"]
[Date "2019.08.19"]
[Round "6.15"]
[White "Hernandez Tellez, Claudia"]
[Black "Kuzhelev, Timur"]
[Result "0-1"]
[ECO "C40"]
[WhiteElo "1711"]
[BlackElo "1597"]
[Annotator "NA"]
[PlyCount "85"]
[EventDate "2019.08.16"]
[EventType "swiss"]
[EventCountry "GGB"]
[SourceTitle "playchess.com"]
[Source "ChessBase"]
[SourceQuality "1"]
[TimeControl "6600+10"]

1. e4 {[%emt 0:00:00]} e5 {[%emt 0:00:24]} 2. Nf3 {[%emt 0:00:15]} d5 {[%emt 0:00:04]} 3. exd5 {[%emt 0:02:10]} e4 {[%emt 0:00:35]} 4. Qe2 {[%emt 0:05:01]} Nf6 {[%emt 0:00:04]} 5. Nc3 {[%emt 0:03:30]} Be7 {[%emt 0:00:10]} 6. Nxe4 {[%emt 0:06:06]} Nxd5 {[%emt 0:00:03]} 7. Nc3 {[%emt 0:08:30]} Nb4 {[%emt 0:04:59]} 8. Qd1 {[%emt 0:01:25]} Bf5 {[%emt 0:01:43]} 9. Bb5+ {[%emt 0:04:51]} c6 {[%emt 0:03:41]} 10. Ba4 {[%emt 0:00:07]} b5 {[%emt 0:06:42]} 11. Bb3 {[%emt 0:00:12]} Nd7 {[%emt 0:00:44]} 12. a3 {[%emt 0:02:34]} Na6 {[%emt 0:17:00]} 13. Nd4 {[%emt 0:04:57]} Bg6 {[%emt 0:03:01]} 14. Nxc6 {[%emt 0:01:11]} Qc8 {[%emt 0:00:48]} 15. Nxe7 {[%emt 0:11:45]} Kxe7 {[%emt 0:00:04]} 16. O-O {[%emt 0:01:18]} Nac5 {[%emt 0:05:43]} 17. Qe2+ {[%emt 0:03:02]} Kf8 {[%emt 0:00:32]} 18. Re1 {[%emt 0:04:47]} Nxb3 {[%emt 0:02:39]} 19. cxb3 {[%emt 0:00:46]} Nc5 {[%emt 0:00:45]} 20. Qe7+ {[%emt 0:07:21]} Kg8 {[%emt 0:00:04]} 21. Nd5 {[%emt 0:01:19]} Nd3 {[%emt 0:06:02]} 22. Qd6 {[%emt 0:06:58]} Qd8 {[%emt 0:07:42]} 23. Ne7+ {[%emt 0:00:32]} Kf8 {[%emt 0:00:02]} 24. Nxg6+ {[%emt 0:00:10]} Kg8 {[%emt 0:00:04]} 25. Qxd8+ {[%emt 0:00:47]} Rxd8 {[%emt 0:00:04]} 26. Nxh8 {[%emt 0:00:37]} Nxe1 {[%emt 0:00:16]} 27. Nxf7 {[%emt 0:00:26]} Re8 {[%emt 0:02:26]} 28. f4 {[%emt 0:05:55]} Kxf7 {[%emt 0:00:09]} 29. d4 {[%emt 0:03:08]} Nc2 {[%emt 0:00:18]} 30. Rb1 {[%emt 0:00:10]} Re1+ {[%emt 0:00:54]} 31. Kf2 {[%emt 0:00:04]} Rh1 {[%emt 0:00:05]} 32. Ke2 {[%emt 0:03:14]} Nxd4+ {[%emt 0:00:05]} 33. Kd3 {[%emt 0:00:21]} Nxb3 {[%emt 0:00:18]} 34. Kc2 {[%emt 0:00:07]} Nd4+ {[%emt 0:00:17]} 35. Kd3 {[%emt 0:00:22]} Ne6 {[%emt 0:00:13]} 36. g3 {[%emt 0:01:23]} Nc5+ {[%emt 0:00:09]} 37. Kc3 {[%emt 0:01:08]} Ke6 {[%emt 0:00:56]} 38. b4 {[%emt 0:00:56]} Ne4+ {[%emt 0:01:23]} 39. Kd3 {[%emt 0:00:29]} Kd5 {[%emt 0:00:37]} 40. Ke3 {[%emt 0:03:37]} Re1+ {[%emt 0:06:23]} 41. Kd3 {[%emt 0:00:51]} Rd1+ {[%emt 0:02:37]} 42. Kc2 {[%emt 0:02:48]} Rh1 {[%emt 0:00:03]} 43. Kd3 {[%emt 0:00:43]} 0-1

[Event "Gibraltar Junior Intl U16 2019"]
[Site "Caleta"]
[Date "2019.08.19"]
[Round "6.16"]
[White "Bartelt, Max Peter"]
[Black "Nayak, Aurideep"]
[Result "1-0"]
[ECO "E03"]
[WhiteElo "1803"]
[BlackElo "1546"]
[Annotator "NA RC"]
[PlyCount "93"]
[EventDate "2019.08.16"]
[EventType "swiss"]
[EventCountry "GGB"]
[SourceTitle "playchess.com"]
[Source "ChessBase"]
[SourceQuality "1"]
[TimeControl "6600+10"]

{[%evp 8,79,16,32767,32767,0,32767,32767,32767,32767,32767,32767,19,-29,3,32767,32767,-10,5,11,12,10,32767,6,32767,32767,32767,44,87,97,32767,76,98,91,112,32767,108,108,106,102,125,122,124,105,104,103,105,32767,96,32767,106,32767,124,112,120,93,113,73,111,105,109,103,117,110,32767,209,190,217,32767,300,307,468,32767,1190]} 1. d4 {[%emt 0:00:00]} Nf6 {[%emt 0:00:27]} 2. Nf3 {[%emt 0:00:00]} e6 {[%emt 0:01:20]} 3. g3 {[%emt 0:00:01]} b6 {[%emt 0:02:18]} 4. Bg2 {[%emt 0:00:04]} Bb7 {[%emt 0:01:18]} 5. O-O {[%emt 0:00:05]} d5 {[%emt 0:02:51]} 6. c4 {[%emt 0:00:07]} dxc4 {[%emt 0:01:20]} 7. Qa4+ {[%emt 0:00:46]} Nbd7 {[%emt 0:02:06]} 8. Nc3 {[%emt 0:04:30]} a6 {[%emt 0:02:45]} 9. Qxc4 {[%emt 0:00:25]} c5 {[%emt 0:01:53]} (9... b5 $5 {[%cal Rb5c4]} 10. Qd3 c5 $11) 10. Bf4 {[%emt 0:06:14] E03: Open Catalan: 5 Qa4+ Nbd7 6 Qxc4} (10. dxc5 Bxc5 11. Bg5 O-O 12. Rad1 Qc8 13. Qf4 h6 14. Bxf6 Nxf6 15. Rc1 Qb8 16. Qxb8 Raxb8 17. Na4 Bd6 18. Nd4 b5 {½-½ (56) Harikrishna,P (2612)-Eljanov,P (2629) Mallorca 2004}) 10... cxd4 $146 {[%emt 0:01:39]} ({Predecessor:} 10... Rc8 11. a3 cxd4 12. Qxd4 Bc5 13. Qd2 O-O {1-0 (42) Wang,K (1983)-Brockman,R (1496) Auckland 2019}) 11. Qxd4 {[%emt 0:01:41]} Bc5 {[%emt 0:02:11]} 12. Qd2 {[%emt 0:01:31]} O-O {[%emt 0:07:23]} 13. Bd6 {[%emt 0:04:23]} Bxd6 {[%emt 0:05:56]} 14. Qxd6 {[%emt 0:00:02]} Nd5 {[%emt 0:02:03]} 15. Ne5 {[%emt 0:12:13]} Nxe5 {[%emt 0:04:06]} 16. Qxe5 {[%emt 0:00:05]} Re8 {[%emt 0:00:40]} 17. Rfd1 {[%emt 0:00:50]} f6 {[%emt 0:03:07]} 18. Qh5 {[%emt 0:03:30]} g6 {[%emt 0:05:32]} 19. Qg4 {[%emt 0:03:19]} Qe7 {[%emt 0:02:10]} 20. Nxd5 {[%emt 0:04:17]} Bxd5 {[%emt 0:00:58]} 21. Rxd5 {[%emt 0:00:42]} exd5 {[%emt 0:02:17]} 22. Bxd5+ {[%emt 0:00:02] Double Attack} Kg7 {[%emt 0:00:10]} 23. Bxa8 {[%emt 0:00:06]} Rxa8 {[%emt 0:00:08]} 24. Rc1 {[%emt 0:04:40]} Rd8 {[%emt 0:02:07]} 25. Rc6 {[%emt 0:06:21]} Rd6 {[%emt 0:01:59]} 26. Rxd6 {[%emt 0:02:28]} Qxd6 {[%emt 0:00:08]} 27. Qc4 {[%emt 0:00:18]} b5 {[%emt 0:02:09]} 28. Qd3 {[%emt 0:00:15]} Qc6 {[%emt 0:00:20]} 29. b4 {[%emt 0:01:10]} Kf7 {[%emt 0:02:28]} 30. e4 {[%emt 0:01:14]} Ke7 {[%emt 0:02:59]} 31. Kf1 {[%emt 0:00:50]} Qc1+ {[%emt 0:00:12]} 32. Ke2 {[%emt 0:00:02]} Qb2+ {[%emt 0:00:14]} 33. Qd2 {[%emt 0:00:03]} Qe5 {[%emt 0:00:23]} 34. Ke3 {[%emt 0:01:39]} Qc7 {[%emt 0:04:12]} 35. h4 {[%emt 0:05:31]} f5 {[%emt 0:03:39]} 36. Qd3 {[%emt 0:03:30]} Qc1+ {[%emt 0:00:54]} 37. Kf3 {[%emt 0:00:19]} Qh1+ {[%emt 0:01:57]} 38. Kf4 {[%emt 0:00:14]} Qc1+ {[%emt 0:01:48]} 39. Qe3 {[%emt 0:00:55]} Qc4 {[%emt 0:01:17]} 40. Qc5+ $18 {[%emt 0:10:56]} Kd7 {[%emt 0:03:13]} 41. Qxc4 {[%emt 0:00:56]} bxc4 {[%emt 0:00:19]} 42. exf5 {[%emt 0:00:16]} gxf5 {[%emt 0:00:53]} 43. Ke3 {[%emt 0:01:54]} Kc6 {[%emt 0:01:46]} 44. Kd4 {[%emt 0:00:10]} Kb5 {[%emt 0:00:10]} 45. Kc3 {[%emt 0:01:14]} h6 {[%emt 0:00:34]} 46. f3 {[%emt 0:00:58]} h5 {[%emt 0:00:19]} 47. f4 {[%emt 0:00:01]} 1-0

[Event "Gibraltar Junior Intl U16 2019"]
[Site "Caleta"]
[Date "2019.08.19"]
[Round "6.17"]
[White "Walker, Max"]
[Black "Mendis, Vidura"]
[Result "1-0"]
[ECO "C13"]
[WhiteElo "1667"]
[BlackElo "1528"]
[Annotator "NA"]
[PlyCount "80"]
[EventDate "2019.08.16"]
[EventType "swiss"]
[EventCountry "GGB"]
[SourceTitle "playchess.com"]
[Source "ChessBase"]
[SourceQuality "1"]
[TimeControl "6600+10"]

1. e4 {[%emt 0:09:29]} e6 {[%emt 0:00:06]} 2. d4 {[%emt 0:00:09]} d5 {[%emt 0:00:14]} 3. Nd2 {[%emt 0:00:04]} dxe4 {[%emt 0:00:10]} 4. Nxe4 {[%emt 0:00:14]} Nf6 {[%emt 0:04:57]} 5. Bg5 {[%emt 0:01:26]} Be7 {[%emt 0:00:37]} 6. Bxf6 {[%emt 0:00:06]} Bxf6 {[%emt 0:00:14]} 7. Nxf6+ {[%emt 0:00:05]} Qxf6 {[%emt 0:02:38]} 8. Nf3 {[%emt 0:00:15]} O-O {[%emt 0:00:30]} 9. Bd3 {[%emt 0:00:17]} Nc6 {[%emt 0:01:02]} 10. O-O {[%emt 0:00:46]} Ne7 {[%emt 0:00:37]} 11. Re1 {[%emt 0:01:54]} Bd7 {[%emt 0:01:02]} 12. Ne5 {[%emt 0:00:30]} Rad8 {[%emt 0:01:15]} 13. c3 {[%emt 0:00:48]} Bc6 {[%emt 0:05:45]} 14. Qh5 {[%emt 0:01:15]} g6 {[%emt 0:07:21]} 15. Qh3 {[%emt 0:05:37]} Rfe8 {[%emt 0:06:14]} 16. Ng4 {[%emt 0:01:35]} Qg7 {[%emt 0:00:45]} 17. Qh4 {[%emt 0:04:44]} Kh8 {[%emt 0:02:56]} 18. Ne5 {[%emt 0:04:40]} a6 {[%emt 0:05:50]} 19. a4 {[%emt 0:02:49]} Bd5 {[%emt 0:01:32]} 20. b4 {[%emt 0:04:02]} Nf5 {[%emt 0:02:56]} 21. Qh3 {[%emt 0:02:54]} f6 {[%emt 0:02:53]} 22. Nf3 {[%emt 0:10:24]} Bxf3 {[%emt 0:02:57]} 23. Qxf3 {[%emt 0:00:42]} c6 {[%emt 0:00:21]} 24. b5 {[%emt 0:04:54]} cxb5 {[%emt 0:04:20]} 25. axb5 {[%emt 0:00:15]} Qc7 {[%emt 0:00:28]} 26. bxa6 {[%emt 0:02:54]} bxa6 {[%emt 0:00:06]} 27. Bxa6 {[%emt 0:00:45]} Rb8 {[%emt 0:02:25]} 28. Rab1 {[%emt 0:05:39]} Rxb1 {[%emt 0:02:47]} 29. Rxb1 {[%emt 0:00:12]} e5 {[%emt 0:04:03]} 30. dxe5 {[%emt 0:04:11]} fxe5 {[%emt 0:01:26]} 31. Bb5 {[%emt 0:05:08]} e4 {[%emt 0:00:28]} 32. Qe2 {[%emt 0:01:24]} Re5 {[%emt 0:01:36]} 33. Qb2 {[%emt 0:04:40]} Rc5 {[%emt 0:05:17]} 34. c4+ {[%emt 0:00:17]} Qg7 {[%emt 0:00:39]} 35. Qc2 {[%emt 0:07:33]} Qe5 {[%emt 0:01:31]} 36. h3 {[%emt 0:10:25]} Nd4 {[%emt 0:00:54]} 37. Qa2 {[%emt 0:04:07]} e3 {[%emt 0:02:53]} 38. fxe3 {[%emt 0:01:11]} Qxe3+ {[%emt 0:00:05]} 39. Kh1 {[%emt 0:00:38]} Nxb5 {[%emt 0:01:53]} 40. cxb5 {[%emt 0:02:05]} Qe5 1-0

[Event "Gibraltar Junior Intl U16 2019"]
[Site "Caleta"]
[Date "2019.08.19"]
[Round "6.18"]
[White "Major, Richard"]
[Black "Garcia Calero, Jose Maria"]
[Result "1-0"]
[ECO "B09"]
[WhiteElo "1615"]
[BlackElo "1395"]
[Annotator "NA RC"]
[PlyCount "47"]
[EventDate "2019.08.16"]
[EventType "swiss"]
[EventCountry "GGB"]
[SourceTitle "playchess.com"]
[Source "ChessBase"]
[SourceQuality "1"]
[TimeControl "6600+10"]

1. e4 {[%emt 0:00:00]} d6 {[%emt 0:00:03]} 2. d4 {[%emt 0:00:00]} Nf6 {[%emt 0:00:05]} 3. Nc3 {[%emt 0:00:07]} g6 {[%emt 0:00:06]} 4. f4 {[%emt 0:00:04]} Bg7 {[%emt 0:00:17]} 5. Nf3 {[%emt 0:00:02]} O-O {[%emt 0:00:12]} 6. Bd3 {[%emt 0:00:22]} Nc6 {[%emt 0:00:17]} 7. Be3 {[%emt 0:00:42]} e5 {[%emt 0:03:33]} 8. fxe5 {[%emt 0:00:40]} dxe5 {[%emt 0:00:18]} 9. d5 {[%emt 0:00:17]} Ne7 {[%emt 0:01:01]} 10. Qd2 {[%emt 0:01:40]} Ng4 {[%emt 0:08:15]} 11. O-O-O {[%emt 0:00:03]} Nxe3 {[%emt 0:00:44]} 12. Qxe3 {[%emt 0:00:05]} a6 {[%emt 0:12:32]} 13. h3 {[%emt 0:00:08]} b5 {[%emt 0:00:21]} 14. g4 {[%emt 0:01:19]} Bd7 {[%emt 0:12:19]} 15. Rdg1 {[%emt 0:00:05]} c6 {[%emt 0:05:26]} 16. h4 {[%emt 0:00:26]} cxd5 {[%emt 0:00:48]} 17. exd5 {[%emt 0:00:13]} b4 {[%emt 0:00:41]} 18. d6 {[%emt 0:04:39]} bxc3 {[%emt 0:01:55]} 19. dxe7 {[%emt 0:00:02]} cxb2+ {[%emt 0:00:34]} 20. Kb1 {[%emt 0:00:01]} Qxe7 {[%emt 0:01:11]} 21. h5 {[%emt 0:00:02]} Qa3 {[%emt 0:07:08]} 22. hxg6 {[%emt 0:00:25]} Be6 {[%emt 0:01:42]} 23. gxf7+ {[%emt 0:00:36]} Rxf7 {[%emt 0:01:17]} 24. Bxh7+ {[%emt 0:00:20]} 1-0

[Event "Gibraltar Junior Intl U16 2019"]
[Site "Caleta"]
[Date "2019.08.19"]
[Round "6.19"]
[White "Seleznev, Egor"]
[Black "Khan, Samir"]
[Result "1-0"]
[ECO "A47"]
[WhiteElo "1590"]
[BlackElo "1282"]
[Annotator "NA"]
[PlyCount "79"]
[EventDate "2019.08.16"]
[EventType "swiss"]
[EventCountry "GGB"]
[SourceTitle "playchess.com"]
[Source "ChessBase"]
[SourceQuality "1"]
[TimeControl "6600+10"]

1. d4 {[%emt 0:00:00]} b6 {[%emt 0:00:00]} 2. Bf4 {[%emt 0:00:33]} e6 {[%emt 0:00:05]} 3. Nf3 {[%emt 0:00:35]} Bb7 {[%emt 0:00:04]} 4. e3 {[%emt 0:00:39]} Nf6 {[%emt 0:00:10]} 5. Nbd2 {[%emt 0:00:46]} c5 {[%emt 0:00:54]} 6. c3 {[%emt 0:00:42]} d6 {[%emt 0:00:47]} 7. h3 {[%emt 0:00:56]} Nbd7 {[%emt 0:00:41]} 8. Bd3 {[%emt 0:01:44]} Qc7 {[%emt 0:00:31]} 9. Qc2 {[%emt 0:05:11]} Qc6 {[%emt 0:13:36]} 10. e4 {[%emt 0:07:18]} d5 {[%emt 0:04:40]} 11. e5 {[%emt 0:05:21]} Ne4 {[%emt 0:01:09]} 12. Be3 {[%emt 0:05:38]} Nxd2 {[%emt 0:01:05]} 13. Qxd2 {[%emt 0:00:59]} c4 {[%emt 0:00:24]} 14. Bc2 {[%emt 0:01:09]} a5 {[%emt 0:00:51]} 15. O-O {[%emt 0:03:22]} h6 {[%emt 0:01:52]} 16. Ne1 {[%emt 0:03:48]} f6 {[%emt 0:02:37]} 17. Bg6+ {[%emt 0:02:14]} Kd8 {[%emt 0:00:11]} 18. f4 {[%emt 0:05:16]} f5 {[%emt 0:00:15]} 19. g4 {[%emt 0:01:24]} fxg4 {[%emt 0:07:20]} 20. hxg4 {[%emt 0:03:21]} Be7 {[%emt 0:01:54]} 21. Nf3 {[%emt 0:03:42]} Nf8 {[%emt 0:00:23]} 22. Bc2 {[%emt 0:06:57]} h5 {[%emt 0:02:56]} 23. Qg2 {[%emt 0:11:05]} hxg4 {[%emt 0:05:16]} 24. Qxg4 {[%emt 0:01:54]} g6 {[%emt 0:00:22]} 25. Kg2 {[%emt 0:01:45]} Qb5 {[%emt 0:01:46]} 26. Rab1 {[%emt 0:04:52]} a4 {[%emt 0:02:03]} 27. Ng5 {[%emt 0:03:46]} Kd7 {[%emt 0:02:10]} 28. Rf2 {[%emt 0:06:32]} Qa5 {[%emt 0:08:23]} 29. Bd2 {[%emt 0:03:51]} b5 {[%emt 0:00:42]} 30. a3 {[%emt 0:00:51]} Qb6 {[%emt 0:01:36]} 31. Re1 {[%emt 0:04:26]} b4 {[%emt 0:02:05]} 32. cxb4 {[%emt 0:01:24]} Qxd4 {[%emt 0:00:37]} 33. Be3 {[%emt 0:00:58]} Qxb2 {[%emt 0:00:34]} 34. Bxa4+ {[%emt 0:00:11]} Rxa4 {[%emt 0:01:10]} 35. Rxb2 {[%emt 0:00:18]} Rxa3 {[%emt 0:00:21]} 36. Bd4 {[%emt 0:01:36]} Rd3 {[%emt 0:02:01]} 37. Nf3 {[%emt 0:01:40]} Rg8 {[%emt 0:02:28]} 38. Ra1 {[%emt 0:01:24]} Nh7 {[%emt 0:01:46]} 39. Ra7 {[%emt 0:02:01]} Kc7 {[%emt 0:02:51]} 40. Qxe6 {[%emt 0:00:20]} 1-0